Workbook

Sheet Лист1
E7: =Лист2!$D$13 -> 4 | H7: =Лист3!$C$31 -> 2.5 | K7: =Лист4!$C$31 -> 9
D12: Как написать макрос, чтоб быстро крутиться счетчика? При условии только на этом листе, и не коснулись на других листаХ( В других листах имеется вставки со макросами).
D14: Имеется файл весит 15 Мб, при прокрутке счетчика медлит и тормозит.
N26: Не тот макрос: | O26: Private Sub Worksheet_SelectionChange(ByVal Target As Range) With ActiveWindow .ScrollRow = Target.Row .ScrollColumn = Target.Column End With End Sub

Sheet Лист5
A3: -6 | B3: -5 | C3: -4 | D3: -3 | E3: -2 | F3: -1 | G3: 0 | H3: 1 | I3: 2 | J3: 3 | K3: 4 | L3: 5 | M3: 6 | N3: 7 | O3: 8 | P3: 9 | Q3: 10 | R3: 11 | S3: 1 | T3: 13 | U3: 1 | V3: =Лист3!R22 -> 2.5 | W3: =Лист2!R4 -> 4 | X3: ааа | Y3: =ProcessByFontColor(T3:T80,X3, "COUNT") -> 46 | Z3: ааа | AA3: =ProcessByFontColor(U3:U80,Z3, "COUNT") -> 33 | AB3: ааа | AC3: =ProcessByFontColor(S3:S80,AB3, "COUNT") -> 33
A4: =A3+1.5 -> -4.5 | B4: =B3+1.5 -> -3.5 | C4: =C3+1.5 -> -2.5 | D4: =D3+1.5 -> -1.5 | E4: =E3+1.5 -> -0.5 | F4: =F3+1.5 -> 0.5 | G4: 1.5 | H4: =H3+1.5 -> 2.5 | I4: =I3+1.5 -> 3.5 | J4: =J3+1.5 -> 4.5 | K4: =K3+1.5 -> 5.5 | L4: =L3+1.5 -> 6.5 | M4: =M3+1.5 -> 7.5 | N4: =N3+1.5 -> 8.5 | O4: =O3+1.5 -> 9.5 | P4: =P3+1.5 -> 10.5 | Q4: =Q3+1.5 -> 11.5 | R4: =R3+1.5 -> 12.5 | S4: =S3+1.5 -> 2.5 | T4: =T3+1.5 -> 14.5 | U4: =U3+1.5 -> 2.5 | V4: =Лист3!R23 -> 2.5 | W4: =Лист2!R5 -> 4 | X4: ббб | Y4: =ProcessByFontColor(T3:T80,X4, "COUNT") -> 5 | Z4: ббб | AA4: =ProcessByFontColor(U3:U80,Z4, "COUNT") -> 14 | AB4: ббб | AC4: =ProcessByFontColor(S4:S81,AB4, "COUNT") -> 14
A5: -3 | B5: -2 | C5: -1 | D5: 0 | E5: 1 | F5: 2 | G5: 3 | H5: 4 | I5: 5 | J5: 6 | K5: 7 | L5: 8 | M5: 9 | N5: 10 | O5: 11 | P5: 12 | Q5: 13 | R5: 14 | S5: =S4+1.5 -> 4 | T5: 16 | U5: 4 | V5: =Лист3!R24 -> 2.5 | W5: =Лист2!R6 -> 4 | X5: ввв | Y5: =ProcessByFontColor(T3:T80,X5, "COUNT") -> 2 | Z5: ввв | AA5: =ProcessByFontColor(U3:U80,Z5, "COUNT") -> 7 | AB5: ввв | AC5: 5
A6: -1.5 | B6: -0.5 | C6: 0.5 | D6: 1.5 | E6: 2.5 | F6: 3.5 | G6: 4.5 | H6: 5.5 | I6: 6.5 | J6: 7.5 | K6: 8.5 | L6: 9.5 | M6: 10.5 | N6: 11.5 | O6: 12.5 | P6: 13.5 | Q6: 14.5 | R6: 15.5 | S6: 5.5 | T6: 17.5 | U6: 5.5 | V6: =Лист3!R25 -> 2.5 | W6: =Лист2!R7 -> 4 | X6: ссс | Y6: =ProcessByFontColor(T3:T80,X6, "COUNT") -> 25 | Z6: ссс | AA6: =ProcessByFontColor(U3:U80,Z6, "COUNT") -> 23 | AB6: ссс | AC6: 22
A7: 0 | B7: 1 | C7: 2 | D7: 3 | E7: 4 | F7: 5 | G7: 6 | H7: 7 | I7: 8 | J7: 9 | K7: 10 | L7: 11 | M7: 12 | N7: 13 | O7: 14 | P7: 15 | Q7: 16 | R7: 17 | S7: 7 | T7: 19 | U7: 7 | V7: =Лист3!R26 -> 2.5 | W7: =Лист2!R8 -> 4
A8: 1.5 | B8: 2.5 | C8: 3.5 | D8: 4.5 | E8: 5.5 | F8: 6.5 | G8: 7.5 | H8: 8.5 | I8: 9.5 | J8: 10.5 | K8: 11.5 | L8: 12.5 | M8: 13.5 | N8: 14.5 | O8: 15.5 | P8: 16.5 | Q8: 17.5 | R8: 18.5 | S8: 8.5 | T8: 20.5 | U8: 8.5 | V8: =Лист3!R27 -> 2.5 | W8: =Лист2!R9 -> 4
A9: 3 | B9: 4 | C9: 5 | D9: 6 | E9: 7 | F9: 8 | G9: 9 | H9: 10 | I9: 11 | J9: 12 | K9: 13 | L9: 14 | M9: 15 | N9: 16 | O9: 17 | P9: 18 | Q9: 19 | R9: 20 | S9: 10 | T9: 22 | U9: 10 | V9: =Лист3!R28 -> 2.5 | W9: =Лист2!R10 -> 4
A10: 4.5 | B10: 5.5 | C10: 6.5 | D10: 7.5 | E10: 8.5 | F10: 9.5 | G10: 10.5 | H10: 11.5 | I10: 12.5 | J10: 13.5 | K10: 14.5 | L10: 15.5 | M10: 16.5 | N10: 17.5 | O10: 18.5 | P10: 19.5 | Q10: 20.5 | R10: 21.5 | S10: 11.5 | T10: 23.5 | U10: 11.5 | V10: =Лист3!R29 -> 2.5 | W10: =Лист2!R11 -> 4
A11: 6 | B11: 7 | C11: 8 | D11: 9 | E11: 10 | F11: 11 | G11: 12 | H11: 13 | I11: 14 | J11: 15 | K11: 16 | L11: 17 | M11: 18 | N11: 19 | O11: 20 | P11: 21 | Q11: 22 | R11: 23 | S11: 13 | T11: 25 | U11: 13 | V11: =Лист3!R30 -> 2.5 | W11: =Лист2!R12 -> 4
A12: 7.5 | B12: 8.5 | C12: 9.5 | D12: 10.5 | E12: 11.5 | F12: 12.5 | G12: 13.5 | H12: 14.5 | I12: 15.5 | J12: 16.5 | K12: 17.5 | L12: 18.5 | M12: 19.5 | N12: 20.5 | O12: 21.5 | P12: 22.5 | Q12: 23.5 | R12: 24.5 | S12: 14.5 | T12: 26.5 | U12: 14.5 | V12: =Лист3!R31 -> 2.5 | W12: =Лист2!R13 -> 4
A13: 9 | B13: 10 | C13: 11 | D13: 12 | E13: 13 | F13: 14 | G13: 15 | H13: 16 | I13: 17 | J13: 18 | K13: 19 | L13: 20 | M13: 21 | N13: 22 | O13: 23 | P13: 24 | Q13: 25 | R13: 26 | S13: 16 | T13: 28 | U13: 16 | V13: =Лист3!R32 -> 2.5 | W13: =Лист2!R14 -> 4
A14: 10.5 | B14: 11.5 | C14: 12.5 | D14: 13.5 | E14: 14.5 | F14: 15.5 | G14: 16.5 | H14: 17.5 | I14: 18.5 | J14: 19.5 | K14: 20.5 | L14: 21.5 | M14: 22.5 | N14: 23.5 | O14: 24.5 | P14: 25.5 | Q14: 26.5 | R14: 27.5 | S14: 17.5 | T14: 29.5 | U14: 17.5 | V14: =Лист3!R33 -> 2.5 | W14: =Лист2!R15 -> 4
A15: 12 | B15: 13 | C15: 14 | D15: 15 | E15: 16 | F15: 17 | G15: 18 | H15: 19 | I15: 20 | J15: 21 | K15: 22 | L15: 23 | M15: 24 | N15: 25 | O15: 26 | P15: 27 | Q15: 28 | R15: 29 | S15: 19 | T15: 31 | U15: 19 | V15: =Лист3!R34 -> 2.5 | W15: =Лист2!R16 -> 4
A16: 13.5 | B16: 14.5 | C16: 15.5 | D16: 16.5 | E16: 17.5 | F16: 18.5 | G16: 19.5 | H16: 20.5 | I16: 21.5 | J16: 22.5 | K16: 23.5 | L16: 24.5 | M16: 25.5 | N16: 26.5 | O16: 27.5 | P16: 28.5 | Q16: 29.5 | R16: 30.5 | S16: 20.5 | T16: 32.5 | U16: 20.5 | V16: =Лист3!R35 -> 2.5 | W16: =Лист2!R17 -> 4
A17: 15 | B17: 16 | C17: 17 | D17: 18 | E17: 19 | F17: 20 | G17: 21 | H17: 22 | I17: 23 | J17: 24 | K17: 25 | L17: 26 | M17: 27 | N17: 28 | O17: 29 | P17: 30 | Q17: 31 | R17: 32 | S17: 22 | T17: 34 | U17: 22 | V17: =Лист3!R36 -> 2.5 | W17: =Лист2!R18 -> 4
A18: 16.5 | B18: 17.5 | C18: 18.5 | D18: 19.5 | E18: 20.5 | F18: 21.5 | G18: 22.5 | H18: 23.5 | I18: 24.5 | J18: 25.5 | K18: 26.5 | L18: 27.5 | M18: 28.5 | N18: 29.5 | O18: 30.5 | P18: 31.5 | Q18: 32.5 | R18: 33.5 | S18: 23.5 | T18: 35.5 | U18: 23.5 | V18: =Лист3!R37 -> 2.5 | W18: =Лист2!R19 -> 4
A19: 18 | B19: 19 | C19: 20 | D19: 21 | E19: 22 | F19: 23 | G19: 24 | H19: 25 | I19: 26 | J19: 27 | K19: 28 | L19: 29 | M19: 30 | N19: 31 | O19: 32 | P19: 33 | Q19: 34 | R19: 35 | S19: 25 | T19: 37 | U19: 25 | V19: =Лист3!R38 -> 2.5 | W19: =Лист2!R20 -> 4
A20: 19.5 | B20: 20.5 | C20: 21.5 | D20: 22.5 | E20: 23.5 | F20: =F19+1.5 -> 24.5 | G20: =G19+1.5 -> 25.5 | H20: 26.5 | I20: 27.5 | J20: 28.5 | K20: 29.5 | L20: 30.5 | M20: 31.5 | N20: 32.5 | O20: 33.5 | P20: 34.5 | Q20: 35.5 | R20: 36.5 | S20: 26.5 | T20: 38.5 | U20: 26.5 | V20: =Лист3!R39 -> 2.5 | W20: =Лист2!R21 -> 4
A21: 21 | B21: 22 | C21: 23 | D21: 24 | E21: 25 | F21: 26 | G21: 27 | H21: 28 | I21: 29 | J21: 30 | K21: 31 | L21: 32 | M21: 33 | N21: 34 | O21: 35 | P21: 36 | Q21: 37 | R21: 38 | S21: 28 | T21: 40 | U21: 28 | V21: =Лист3!R40 -> 2.5 | W21: =Лист2!R22 -> 4
A22: 22.5 | B22: 23.5 | C22: 24.5 | D22: 25.5 | E22: 26.5 | F22: 27.5 | G22: 28.5 | H22: 29.5 | I22: 30.5 | J22: 31.5 | K22: 32.5 | L22: 33.5 | M22: 34.5 | N22: 35.5 | O22: 36.5 | P22: 37.5 | Q22: 38.5 | R22: 39.5 | S22: 29.5 | T22: 41.5 | U22: 29.5 | V22: =Лист3!R41 -> 2.5 | W22: =Лист2!R23 -> 4
A23: 24 | B23: 25 | C23: 26 | D23: 27 | E23: 28 | F23: 29 | G23: 30 | H23: 31 | I23: 32 | J23: 33 | K23: 34 | L23: 35 | M23: 36 | N23: 37 | O23: 38 | P23: 39 | Q23: 40 | R23: 41 | S23: 31 | T23: 43 | U23: 31 | V23: =Лист3!R42 -> 2.5 | W23: =Лист2!R24 -> 4
A24: 25.5 | B24: 26.5 | C24: 27.5 | D24: 28.5 | E24: 29.5 | F24: 30.5 | G24: 31.5 | H24: 32.5 | I24: 33.5 | J24: 34.5 | K24: 35.5 | L24: 36.5 | M24: 37.5 | N24: 38.5 | O24: 39.5 | P24: 40.5 | Q24: 41.5 | R24: 42.5 | S24: =S23+1.5 -> 32.5 | T24: =T23+1.5 -> 44.5 | U24: =U23+1.5 -> 32.5 | V24: =Лист3!R43 -> 2.5 | W24: =Лист2!R25 -> 4
A25: 27 | B25: 28 | C25: 29 | D25: 30 | E25: 31 | F25: 32 | G25: 33 | H25: 34 | I25: 35 | J25: 36 | K25: 37 | L25: 38 | M25: 39 | N25: 40 | O25: 41 | P25: 42 | Q25: 43 | R25: 44 | S25: 34 | T25: 46 | U25: 34 | V25: =Лист3!R44 -> 2.5 | W25: =Лист2!R26 -> 4
F26: =F25+1.5 -> 33.5 | G26: =G25+1.5 -> 34.5 | H26: =H25+1.5 -> 35.5 | I26: =I25+1.5 -> 36.5 | J26: =J25+1.5 -> 37.5 | K26: =K25+1.5 -> 38.5 | L26: =L25+1.5 -> 39.5 | M26: =M25+1.5 -> 40.5 | N26: =N25+1.5 -> 41.5 | O26: =O25+1.5 -> 42.5 | P26: =P25+1.5 -> 43.5 | Q26: =Q25+1.5 -> 44.5 | R26: =R25+1.5 -> 45.5 | S26: 35.5 | T26: 47.5 | U26: 35.5
F27: 35 | G27: 36 | H27: 37 | I27: 38 | J27: 39 | K27: 40 | L27: 41 | M27: 42 | N27: 43 | O27: 44 | P27: 45 | Q27: 46 | R27: 47 | S27: 37 | T27: 49 | U27: 37
F28: 36.5 | G28: 37.5 | H28: 38.5 | I28: 39.5 | J28: 40.5 | K28: 41.5 | L28: 42.5 | M28: 43.5 | N28: 44.5 | O28: 45.5 | P28: 46.5 | Q28: 47.5 | R28: 48.5 | S28: 38.5 | T28: 50.5 | U28: 38.5
F29: 38 | G29: 39 | H29: 40 | I29: 41 | J29: 42 | K29: 43 | L29: 44 | M29: 45 | N29: 46 | O29: 47 | P29: 48 | Q29: 49 | R29: 50 | S29: 40 | T29: 52 | U29: 40
F30: 39.5 | G30: 40.5 | H30: 41.5 | I30: 42.5 | J30: 43.5 | K30: 44.5 | L30: 45.5 | M30: 46.5 | N30: 47.5 | O30: 48.5 | P30: 49.5 | Q30: 50.5 | R30: 51.5 | S30: 41.5 | T30: 53.5 | U30: 41.5
F31: 41 | G31: 42 | H31: 43 | I31: 44 | J31: 45 | K31: 46 | L31: 47 | M31: 48 | N31: 49 | O31: 50 | P31: 51 | Q31: 52 | R31: 53 | S31: 43 | T31: 55 | U31: 43
F32: 42.5 | G32: 43.5 | H32: 44.5 | I32: 45.5 | J32: 46.5 | K32: 47.5 | L32: 48.5 | M32: 49.5 | N32: 50.5 | O32: 51.5 | P32: 52.5 | Q32: 53.5 | R32: 54.5 | S32: 44.5 | T32: 56.5 | U32: 44.5
F33: 44 | G33: 45 | H33: 46 | I33: 47 | J33: 48 | K33: 49 | L33: 50 | M33: 51 | N33: 52 | O33: 53 | P33: 54 | Q33: 55 | R33: 56 | S33: 46 | T33: 58 | U33: 46
F34: 45.5 | G34: 46.5 | H34: 47.5 | I34: 48.5 | J34: 49.5 | K34: 50.5 | L34: 51.5 | M34: 52.5 | N34: 53.5 | O34: 54.5 | P34: 55.5 | Q34: 56.5 | R34: 57.5 | S34: 47.5 | T34: 59.5 | U34: 47.5
F35: 47 | G35: 48 | H35: 49 | I35: 50 | J35: 51 | K35: 52 | L35: 53 | M35: 54 | N35: 55 | O35: 56 | P35: 57 | Q35: 58 | R35: 59 | S35: 49 | T35: 61 | U35: 49
F36: 48.5 | G36: 49.5 | H36: 50.5 | I36: 51.5 | J36: 52.5 | K36: 53.5 | L36: 54.5 | M36: 55.5 | N36: 56.5 | O36: 57.5 | P36: 58.5 | Q36: 59.5 | R36: 60.5 | S36: 50.5 | T36: 62.5 | U36: 50.5
F37: 50 | G37: 51 | H37: 52 | I37: 53 | J37: 54 | K37: 55 | L37: 56 | M37: 57 | N37: 58 | O37: 59 | P37: 60 | Q37: 61 | R37: 62 | S37: 52 | T37: 64 | U37: 52
F38: 51.5 | G38: 52.5 | H38: 53.5 | I38: 54.5 | J38: 55.5 | K38: 56.5 | L38: 57.5 | M38: 58.5 | N38: 59.5 | O38: 60.5 | P38: 61.5 | Q38: 62.5 | R38: 63.5 | S38: 53.5 | T38: 65.5 | U38: 53.5
F39: 53 | G39: 54 | H39: 55 | I39: 56 | J39: 57 | K39: 58 | L39: 59 | M39: 60 | N39: 61 | O39: 62 | P39: 63 | Q39: 64 | R39: 65 | S39: 55 | T39: 67 | U39: 55
F40: 54.5 | G40: 55.5 | H40: 56.5 | I40: 57.5 | J40: 58.5 | K40: 59.5 | L40: 60.5 | M40: 61.5 | N40: 62.5 | O40: 63.5 | P40: 64.5 | Q40: 65.5 | R40: 66.5 | S40: 56.5 | T40: 68.5 | U40: 56.5
F41: 56 | G41: 57 | H41: 58 | I41: 59 | J41: 60 | K41: 61 | L41: 62 | M41: 63 | N41: 64 | O41: 65 | P41: 66 | Q41: 67 | R41: 68 | S41: 58 | T41: 70 | U41: 58
F42: 57.5 | G42: 58.5 | H42: 59.5 | I42: 60.5 | J42: 61.5 | K42: 62.5 | L42: 63.5 | M42: 64.5 | N42: 65.5 | O42: 66.5 | P42: 67.5 | Q42: 68.5 | R42: 69.5 | S42: 59.5 | T42: 71.5 | U42: 59.5
F43: 59 | G43: 60 | H43: 61 | I43: 62 | J43: 63 | K43: 64 | L43: 65 | M43: 66 | N43: 67 | O43: 68 | P43: 69 | Q43: 70 | R43: 71 | S43: 61 | T43: 73 | U43: 61
F44: 60.5 | G44: 61.5 | H44: 62.5 | I44: 63.5 | J44: 64.5 | K44: 65.5 | L44: 66.5 | M44: 67.5 | N44: 68.5 | O44: 69.5 | P44: 70.5 | Q44: 71.5 | R44: 72.5 | S44: 62.5 | T44: 74.5 | U44: 62.5
F45: 62 | G45: 63 | H45: 64 | I45: 65 | J45: 66 | K45: 67 | L45: 68 | M45: 69 | N45: 70 | O45: 71 | P45: 72 | Q45: 73 | R45: 74 | S45: 64 | T45: 76 | U45: 64
F46: 63.5 | G46: 64.5 | H46: 65.5 | I46: 66.5 | J46: 67.5 | K46: 68.5 | L46: 69.5 | M46: 70.5 | N46: 71.5 | O46: 72.5 | P46: 73.5 | Q46: 74.5 | R46: 75.5 | S46: 65.5 | T46: 77.5 | U46: 65.5
F47: 65 | G47: 66 | H47: 67 | I47: 68 | J47: 69 | K47: 70 | L47: 71 | M47: 72 | N47: 73 | O47: 74 | P47: 75 | Q47: 76 | R47: 77 | S47: 67 | T47: 79 | U47: 67
F48: 66.5 | G48: 67.5 | H48: 68.5 | I48: 69.5 | J48: 70.5 | K48: 71.5 | L48: 72.5 | M48: 73.5 | N48: 74.5 | O48: 75.5 | P48: 76.5 | Q48: 77.5 | R48: 78.5 | S48: 68.5 | T48: 80.5 | U48: 68.5
F49: 68 | G49: 69 | H49: 70 | I49: 71 | J49: 72 | K49: 73 | L49: 74 | M49: 75 | N49: 76 | O49: 77 | P49: 78 | Q49: 79 | R49: 80 | S49: 70 | T49: 82 | U49: 70
F50: 69.5 | G50: 70.5 | H50: 71.5 | I50: 72.5 | J50: 73.5 | K50: 74.5 | L50: 75.5 | M50: 76.5 | N50: 77.5 | O50: 78.5 | P50: 79.5 | Q50: 80.5 | R50: 81.5 | S50: 71.5 | T50: 83.5 | U50: 71.5
F51: 71 | G51: 72 | H51: 73 | I51: 74 | J51: 75 | K51: 76 | L51: 77 | M51: 78 | N51: 79 | O51: 80 | P51: 81 | Q51: 82 | R51: 83 | S51: 73 | T51: 85 | U51: 73
F52: 72.5 | G52: 73.5 | H52: 74.5 | I52: 75.5 | J52: 76.5 | K52: 77.5 | L52: 78.5 | M52: 79.5 | N52: 80.5 | O52: 81.5 | P52: 82.5 | Q52: 83.5 | R52: 84.5 | S52: 74.5 | T52: 86.5 | U52: 74.5
F53: 74 | G53: 75 | H53: 76 | I53: 77 | J53: 78 | K53: 79 | L53: 80 | M53: 81 | N53: 82 | O53: 83 | P53: 84 | Q53: 85 | R53: 86 | S53: 76 | T53: 88 | U53: 76
F54: 75.5 | G54: 76.5 | H54: 77.5 | I54: 78.5 | J54: 79.5 | K54: 80.5 | L54: 81.5 | M54: 82.5 | N54: 83.5 | O54: 84.5 | P54: 85.5 | Q54: 86.5 | R54: 87.5 | S54: 77.5 | T54: 89.5 | U54: 77.5
F55: 77 | G55: 78 | H55: 79 | I55: 80 | J55: 81 | K55: 82 | L55: 83 | M55: 84 | N55: 85 | O55: 86 | P55: 87 | Q55: 88 | R55: 89 | S55: 79 | T55: 91 | U55: 79
F56: 78.5 | G56: 79.5 | H56: 80.5 | I56: 81.5 | J56: 82.5 | K56: 83.5 | L56: 84.5 | M56: 85.5 | N56: 86.5 | O56: 87.5 | P56: 88.5 | Q56: 89.5 | R56: 90.5 | S56: 80.5 | T56: 92.5 | U56: 80.5
F57: 80 | G57: 81 | H57: 82 | I57: 83 | J57: 84 | K57: 85 | L57: 86 | M57: 87 | N57: 88 | O57: 89 | P57: 90 | Q57: 91 | R57: 92 | S57: 82 | T57: 94 | U57: 82
F58: 81.5 | G58: 82.5 | H58: 83.5 | I58: 84.5 | J58: 85.5 | K58: 86.5 | L58: 87.5 | M58: 88.5 | N58: 89.5 | O58: 90.5 | P58: 91.5 | Q58: 92.5 | R58: 93.5 | S58: 83.5 | T58: 95.5 | U58: 83.5
F59: 83 | G59: 84 | H59: 85 | I59: 86 | J59: 87 | K59: 88 | L59: 89 | M59: 90 | N59: 91 | O59: 92 | P59: 93 | Q59: 94 | R59: 95 | S59: 85 | T59: 97 | U59: 85
F60: 84.5 | G60: 85.5 | H60: 86.5 | I60: 87.5 | J60: 88.5 | K60: 89.5 | L60: 90.5 | M60: 91.5 | N60: 92.5 | O60: 93.5 | P60: 94.5 | Q60: 95.5 | R60: 96.5 | S60: 86.5 | T60: 98.5 | U60: 86.5
F61: 86 | G61: 87 | H61: 88 | I61: 89 | J61: 90 | K61: 91 | L61: 92 | M61: 93 | N61: 94 | O61: 95 | P61: 96 | Q61: 97 | R61: 98 | S61: 88 | T61: 100 | U61: 88
F62: 87.5 | G62: 88.5 | H62: 89.5 | I62: 90.5 | J62: 91.5 | K62: 92.5 | L62: 93.5 | M62: 94.5 | N62: 95.5 | O62: 96.5 | P62: 97.5 | Q62: 98.5 | R62: 99.5 | S62: 89.5 | T62: 101.5 | U62: 89.5
F63: 89 | G63: 90 | H63: 91 | I63: 92 | J63: 93 | K63: 94 | L63: 95 | M63: 96 | N63: 97 | O63: 98 | P63: 99 | Q63: 100 | R63: 101 | S63: 91 | T63: 103 | U63: 91
F64: 90.5 | G64: 91.5 | H64: 92.5 | I64: 93.5 | J64: 94.5 | K64: 95.5 | L64: 96.5 | M64: 97.5 | N64: 98.5 | O64: 99.5 | P64: 100.5 | Q64: 101.5 | R64: 102.5 | S64: 92.5 | T64: 104.5 | U64: 92.5
F65: 92 | G65: 93 | H65: 94 | I65: 95 | J65: 96 | K65: 97 | L65: 98 | M65: 99 | N65: 100 | O65: 101 | P65: 102 | Q65: 103 | R65: 104 | S65: 94 | T65: 106 | U65: 94
F66: 93.5 | G66: 94.5 | H66: 95.5 | I66: 96.5 | J66: 97.5 | K66: 98.5 | L66: 99.5 | M66: 100.5 | N66: 101.5 | O66: 102.5 | P66: 103.5 | Q66: 104.5 | R66: 105.5 | S66: 95.5 | T66: 107.5 | U66: 95.5
F67: 95 | G67: 96 | H67: 97 | I67: 98 | J67: 99 | K67: 100 | L67: 101 | M67: 102 | N67: 103 | O67: 104 | P67: 105 | Q67: 106 | R67: 107 | S67: 97 | T67: 109 | U67: 97
F68: 96.5 | G68: 97.5 | H68: 98.5 | I68: 99.5 | J68: 100.5 | K68: 101.5 | L68: 102.5 | M68: 103.5 | N68: 104.5 | O68: 105.5 | P68: 106.5 | Q68: 107.5 | R68: 108.5 | S68: 98.5 | T68: 110.5 | U68: 98.5
F69: 98 | G69: 99 | H69: 100 | I69: 101 | J69: 102 | K69: 103 | L69: 104 | M69: 105 | N69: 106 | O69: 107 | P69: 108 | Q69: 109 | R69: 110 | S69: 100 | T69: 112 | U69: 100
F70: 99.5 | G70: 100.5 | H70: 101.5 | I70: 102.5 | J70: 103.5 | K70: 104.5 | L70: 105.5 | M70: 106.5 | N70: 107.5 | O70: 108.5 | P70: 109.5 | Q70: 110.5 | R70: 111.5 | S70: 101.5 | T70: 113.5 | U70: 101.5
F71: 101 | G71: 102 | H71: 103 | I71: 104 | J71: 105 | K71: 106 | L71: 107 | M71: 108 | N71: 109 | O71: 110 | P71: 111 | Q71: 112 | R71: 113 | S71: 103 | T71: 115 | U71: 103
F72: 102.5 | G72: 103.5 | H72: 104.5 | I72: 105.5 | J72: 106.5 | K72: 107.5 | L72: 108.5 | M72: 109.5 | N72: 110.5 | O72: 111.5 | P72: 112.5 | Q72: 113.5 | R72: 114.5 | S72: 104.5 | T72: 116.5 | U72: 104.5
F73: 104 | G73: 105 | H73: 106 | I73: 107 | J73: 108 | K73: 109 | L73: 110 | M73: 111 | N73: 112 | O73: 113 | P73: 114 | Q73: 115 | R73: 116 | S73: 106 | T73: 118 | U73: 106
F74: 105.5 | G74: 106.5 | H74: 107.5 | I74: 108.5 | J74: 109.5 | K74: 110.5 | L74: 111.5 | M74: 112.5 | N74: 113.5 | O74: 114.5 | P74: 115.5 | Q74: 116.5 | R74: 117.5 | S74: 107.5 | T74: 119.5 | U74: 107.5
F75: 107 | G75: 108 | H75: 109 | I75: 110 | J75: 111 | K75: 112 | L75: 113 | M75: 114 | N75: 115 | O75: 116 | P75: 117 | Q75: 118 | R75: 119 | S75: 109 | T75: 121 | U75: 109
F76: 108.5 | G76: 109.5 | H76: 110.5 | I76: 111.5 | J76: 112.5 | K76: 113.5 | L76: 114.5 | M76: 115.5 | N76: 116.5 | O76: 117.5 | P76: 118.5 | Q76: 119.5 | R76: 120.5 | S76: 110.5 | T76: 122.5 | U76: 110.5
F77: 110 | G77: 111 | H77: 112 | I77: 113 | J77: 114 | K77: 115 | L77: 116 | M77: 117 | N77: 118 | O77: 119 | P77: 120 | Q77: 121 | R77: 122 | S77: 112 | T77: 124 | U77: 112
F78: 111.5 | G78: 112.5 | H78: 113.5 | I78: 114.5 | J78: 115.5 | K78: 116.5 | L78: 117.5 | M78: 118.5 | N78: 119.5 | O78: 120.5 | P78: 121.5 | Q78: 122.5 | R78: 123.5 | S78: 113.5 | T78: 125.5 | U78: 113.5
F79: 113 | G79: 114 | H79: 115 | I79: 116 | J79: 117 | K79: 118 | L79: 119 | M79: 120 | N79: 121 | O79: 122 | P79: 123 | Q79: 124 | R79: 125 | S79: 115 | T79: 127 | U79: 115
F80: 114.5 | G80: 115.5 | H80: 116.5 | I80: 117.5 | J80: 118.5 | K80: 119.5 | L80: 120.5 | M80: 121.5 | N80: 122.5 | O80: 123.5 | P80: 124.5 | Q80: 125.5 | R80: 126.5 | S80: 116.5 | T80: 128.5 | U80: 116.5

Sheet Лист2
H3: 109 | I3: 1 | J3: -50
H4: 2 | I4: =I3+1 -> 2 | J4: =J3+0.5 -> -49.5 | R4: =$D$13 -> 4
H5: 3 | I5: =I4+1 -> 3 | J5: =J4+0.5 -> -49 | R5: =$D$13 -> 4
H6: 4 | I6: 4 | J6: -48.5 | R6: 4
H7: 5 | I7: 5 | J7: -48 | R7: 4
H8: 6 | I8: 6 | J8: -47.5 | R8: 4
I9: 7 | J9: -47 | R9: 4
I10: 8 | J10: -46.5 | R10: 4
I11: 9 | J11: -46 | R11: 4
I12: 10 | J12: -45.5 | R12: 4
D13: =IFERROR(VLOOKUP(H3,$I$3:$J341,2,FALSE),"") -> 4 | I13: =I12+1 -> 11 | J13: -45 | R13: 4
I14: =I13+1 -> 12 | J14: -44.5 | R14: 4
I15: 13 | J15: -44 | R15: 4
I16: 14 | J16: -43.5 | R16: 4
I17: 15 | J17: -43 | R17: 4
I18: 16 | J18: -42.5 | R18: 4
I19: 17 | J19: -42 | R19: 4
I20: 18 | J20: -41.5 | R20: 4
H21: 158 | I21: 19 | J21: -41 | R21: 4
I22: 20 | J22: -40.5 | R22: 4
I23: 21 | J23: -40 | R23: 4
I24: 22 | J24: -39.5 | R24: 4
I25: 23 | J25: -39 | R25: 4
I26: 24 | J26: -38.5 | R26: 4
I27: 25 | J27: -38 | R27: 4
I28: 26 | J28: -37.5
I29: 27 | J29: =J28+0.5 -> -37
I30: 28 | J30: -36.5
I31: 29 | J31: -36
I32: 30 | J32: -35.5
I33: 31 | J33: -35
I34: 32 | J34: -34.5
I35: 33 | J35: -34
I36: 34 | J36: -33.5
I37: 35 | J37: -33
I38: 36 | J38: -32.5
I39: 37 | J39: -32
I40: 38 | J40: -31.5
I41: 39 | J41: -31
I42: 40 | J42: -30.5
I43: 41 | J43: -30
I44: 42 | J44: =J43+0.5 -> -29.5
I45: 43 | J45: -29
I46: 44 | J46: -28.5
I47: 45 | J47: -28
I48: 46 | J48: -27.5
I49: 47 | J49: -27
I50: 48 | J50: -26.5
I51: 49 | J51: -26
I52: 50 | J52: =J51+0.5 -> -25.5
I53: 51 | J53: -25
I54: 52 | J54: -24.5
I55: 53 | J55: -24
I56: 54 | J56: -23.5
I57: 55 | J57: -23
I58: 56 | J58: =J57+0.5 -> -22.5
I59: 57 | J59: -22
I60: 58 | J60: -21.5
I61: 59 | J61: -21
I62: 60 | J62: -20.5
I63: 61 | J63: -20
I64: 62 | J64: -19.5
I65: 63 | J65: -19
I66: 64 | J66: -18.5
I67: 65 | J67: -18
I68: 66 | J68: -17.5
I69: =I68+1 -> 67 | J69: =J68+0.5 -> -17
I70: 68 | J70: -16.5
I71: 69 | J71: -16
I72: 70 | J72: -15.5
I73: 71 | J73: -15
I74: 72 | J74: -14.5
I75: 73 | J75: -14
I76: 74 | J76: -13.5
I77: 75 | J77: -13
I78: 76 | J78: -12.5
I79: 77 | J79: -12
I80: 78 | J80: -11.5
I81: 79 | J81: -11
I82: 80 | J82: -10.5
I83: 81 | J83: =J82+0.5 -> -10
I84: 82 | J84: -9.5
I85: 83 | J85: -9
I86: 84 | J86: -8.5
I87: 85 | J87: -8
I88: 86 | J88: -7.5
I89: 87 | J89: -7
I90: 88 | J90: -6.5
I91: 89 | J91: -6
I92: 90 | J92: -5.5
I93: 91 | J93: -5
I94: 92 | J94: -4.5
I95: 93 | J95: -4
I96: 94 | J96: -3.5
I97: 95 | J97: -3
I98: 96 | J98: -2.5
I99: 97 | J99: -2
I100: 98 | J100: -1.5
I101: 99 | J101: -1
I102: 100 | J102: -0.5
I103: 101 | J103: 0
I104: 102 | J104: 0.5
I105: 103 | J105: 1
I106: 104 | J106: 1.5
I107: 105 | J107: 2
I108: 106 | J108: 2.5
I109: 107 | J109: 3
I110: 108 | J110: 3.5
I111: 109 | J111: 4
I112: 110 | J112: 4.5
I113: 111 | J113: 5
I114: 112 | J114: 5.5
I115: 113 | J115: 6
I116: 114 | J116: 6.5
I117: 115 | J117: 7
I118: 116 | J118: 7.5
I119: 117 | J119: 8
I120: 118 | J120: 8.5
I121: 119 | J121: 9
I122: 120 | J122: 9.5
I123: 121 | J123: 10
I124: 122 | J124: 10.5
I125: 123 | J125: 11
I126: 124 | J126: 11.5
I127: 125 | J127: 12
I128: 126 | J128: 12.5
I129: 127 | J129: 13
I130: 128 | J130: 13.5
I131: 129 | J131: 14
I132: 130 | J132: 14.5
I133: =I132+1 -> 131 | J133: =J132+0.5 -> 15
I134: 132 | J134: 15.5
I135: 133 | J135: 16
I136: 134 | J136: 16.5
I137: 135 | J137: 17
I138: 136 | J138: 17.5
I139: 137 | J139: 18
I140: 138 | J140: 18.5
I141: 139 | J141: 19
I142: 140 | J142: 19.5
I143: 141 | J143: 20
I144: 142 | J144: 20.5
I145: 143 | J145: 21
I146: 144 | J146: 21.5
I147: 145 | J147: 22
I148: 146 | J148: 22.5
I149: 147 | J149: 23
I150: 148 | J150: 23.5
I151: 149 | J151: 24
I152: 150 | J152: 24.5
I153: 151 | J153: 25
I154: 152 | J154: 25.5
I155: 153 | J155: 26
I156: 154 | J156: 26.5
I157: 155 | J157: 27
I158: 156 | J158: 27.5
I159: 157 | J159: 28
I160: 158 | J160: 28.5
I161: 159 | J161: 29
I162: 160 | J162: 29.5
I163: 161 | J163: 30
I164: 162 | J164: 30.5
I165: 163 | J165: 31
I166: 164 | J166: 31.5
I167: 165 | J167: 32
I168: 166 | J168: 32.5
I169: 167 | J169: 33
I170: 168 | J170: 33.5
I171: 169 | J171: 34
I172: 170 | J172: 34.5
I173: 171 | J173: 35
I174: 172 | J174: 35.5
I175: 173 | J175: 36
I176: 174 | J176: 36.5
I177: 175 | J177: 37
I178: 176 | J178: 37.5
I179: 177 | J179: 38
I180: 178 | J180: 38.5
I181: 179 | J181: 39
I182: 180 | J182: 39.5
I183: 181 | J183: 40
I184: 182 | J184: 40.5
I185: 183 | J185: 41
I186: 184 | J186: 41.5
I187: 185 | J187: 42
I188: 186 | J188: 42.5
I189: 187 | J189: 43
I190: 188 | J190: 43.5
I191: 189 | J191: 44
I192: 190 | J192: 44.5
I193: 191 | J193: 45
I194: 192 | J194: 45.5
I195: 193 | J195: 46
I196: 194 | J196: 46.5
I197: =I196+1 -> 195 | J197: =J196+0.5 -> 47
I198: 196 | J198: 47.5
I199: 197 | J199: 48
I200: 198 | J200: 48.5
I201: 199 | J201: 49
I202: 200 | J202: 49.5
... 39 more rows

Sheet Лист3
H21: 106 | I21: 1 | J21: -50
H22: 2 | I22: =I21+1 -> 2 | J22: =J21+0.5 -> -49.5 | R22: =$C$31 -> 2.5
H23: 3 | I23: =I22+1 -> 3 | J23: =J22+0.5 -> -49 | R23: =$C$31 -> 2.5
H24: 4 | I24: 4 | J24: -48.5 | R24: 2.5
H25: 5 | I25: 5 | J25: -48 | R25: 2.5
H26: 6 | I26: 6 | J26: -47.5 | R26: 2.5
I27: 7 | J27: -47 | R27: 2.5
I28: 8 | J28: -46.5 | R28: 2.5
I29: 9 | J29: -46 | R29: 2.5
I30: 10 | J30: -45.5 | R30: 2.5
C31: =IFERROR(VLOOKUP(H21,$I$21:$J359,2,FALSE),"") -> 2.5 | I31: 11 | J31: -45 | R31: 2.5
I32: 12 | J32: -44.5 | R32: 2.5
I33: 13 | J33: -44 | R33: 2.5
I34: 14 | J34: -43.5 | R34: 2.5
I35: 15 | J35: -43 | R35: 2.5
I36: 16 | J36: -42.5 | R36: 2.5
I37: 17 | J37: -42 | R37: 2.5
I38: 18 | J38: -41.5 | R38: 2.5
I39: 19 | J39: -41 | R39: 2.5
I40: 20 | J40: -40.5 | R40: 2.5
I41: 21 | J41: -40 | R41: 2.5
I42: 22 | J42: -39.5 | R42: 2.5
I43: 23 | J43: -39 | R43: 2.5
I44: 24 | J44: -38.5 | R44: 2.5
I45: 25 | J45: -38 | R45: 2.5
I46: 26 | J46: -37.5 | R46: 2.5
I47: 27 | J47: -37 | R47: 2.5
I48: 28 | J48: -36.5
I49: 29 | J49: -36
I50: 30 | J50: -35.5
I51: 31 | J51: -35
I52: 32 | J52: -34.5
I53: 33 | J53: -34
I54: 34 | J54: -33.5
I55: 35 | J55: -33
I56: 36 | J56: -32.5
I57: 37 | J57: -32
I58: 38 | J58: -31.5
I59: 39 | J59: -31
I60: 40 | J60: -30.5
I61: 41 | J61: -30
I62: 42 | J62: -29.5
I63: 43 | J63: -29
I64: 44 | J64: -28.5
I65: 45 | J65: -28
I66: 46 | J66: -27.5
I67: 47 | J67: -27
I68: 48 | J68: -26.5
I69: 49 | J69: -26
I70: 50 | J70: -25.5
I71: 51 | J71: -25
I72: 52 | J72: -24.5
I73: 53 | J73: -24
I74: 54 | J74: -23.5
I75: 55 | J75: -23
I76: 56 | J76: -22.5
I77: 57 | J77: -22
I78: 58 | J78: -21.5
I79: 59 | J79: -21
I80: 60 | J80: -20.5
I81: 61 | J81: -20
I82: 62 | J82: -19.5
I83: 63 | J83: -19
I84: 64 | J84: -18.5
I85: 65 | J85: -18
I86: 66 | J86: -17.5
I87: =I86+1 -> 67 | J87: =J86+0.5 -> -17
I88: 68 | J88: -16.5
I89: 69 | J89: -16
I90: 70 | J90: -15.5
I91: 71 | J91: -15
I92: 72 | J92: -14.5
I93: 73 | J93: -14
I94: 74 | J94: -13.5
I95: 75 | J95: -13
I96: 76 | J96: -12.5
I97: 77 | J97: -12
I98: 78 | J98: -11.5
I99: 79 | J99: -11
I100: 80 | J100: -10.5
I101: 81 | J101: -10
I102: 82 | J102: -9.5
I103: 83 | J103: -9
I104: 84 | J104: -8.5
I105: 85 | J105: -8
I106: 86 | J106: -7.5
I107: 87 | J107: -7
I108: 88 | J108: -6.5
I109: 89 | J109: -6
I110: 90 | J110: -5.5
I111: 91 | J111: -5
I112: 92 | J112: -4.5
I113: 93 | J113: -4
I114: 94 | J114: -3.5
I115: 95 | J115: -3
I116: 96 | J116: -2.5
I117: 97 | J117: -2
I118: 98 | J118: -1.5
I119: 99 | J119: -1
I120: 100 | J120: -0.5
I121: 101 | J121: 0
I122: 102 | J122: 0.5
I123: 103 | J123: 1
I124: 104 | J124: 1.5
I125: 105 | J125: 2
I126: 106 | J126: 2.5
I127: 107 | J127: 3
I128: 108 | J128: 3.5
I129: 109 | J129: 4
I130: 110 | J130: 4.5
I131: 111 | J131: 5
I132: 112 | J132: 5.5
I133: 113 | J133: 6
I134: 114 | J134: 6.5
I135: 115 | J135: 7
I136: 116 | J136: 7.5
I137: 117 | J137: 8
I138: 118 | J138: 8.5
I139: 119 | J139: 9
I140: 120 | J140: 9.5
I141: 121 | J141: 10
I142: 122 | J142: 10.5
I143: 123 | J143: 11
I144: 124 | J144: 11.5
I145: 125 | J145: 12
I146: 126 | J146: 12.5
I147: 127 | J147: 13
I148: 128 | J148: 13.5
I149: 129 | J149: 14
I150: 130 | J150: 14.5
I151: =I150+1 -> 131 | J151: =J150+0.5 -> 15
I152: 132 | J152: 15.5
I153: 133 | J153: 16
I154: 134 | J154: 16.5
I155: 135 | J155: 17
I156: 136 | J156: 17.5
I157: 137 | J157: 18
I158: 138 | J158: 18.5
I159: 139 | J159: 19
I160: 140 | J160: 19.5
I161: 141 | J161: 20
I162: 142 | J162: 20.5
I163: 143 | J163: 21
I164: 144 | J164: 21.5
I165: 145 | J165: 22
I166: 146 | J166: 22.5
I167: 147 | J167: 23
I168: 148 | J168: 23.5
I169: 149 | J169: 24
I170: 150 | J170: 24.5
I171: 151 | J171: 25
I172: 152 | J172: 25.5
I173: 153 | J173: 26
I174: 154 | J174: 26.5
I175: 155 | J175: 27
I176: 156 | J176: 27.5
I177: 157 | J177: 28
I178: 158 | J178: 28.5
I179: 159 | J179: 29
I180: 160 | J180: 29.5
I181: 161 | J181: 30
I182: 162 | J182: 30.5
I183: 163 | J183: 31
I184: 164 | J184: 31.5
I185: 165 | J185: 32
I186: 166 | J186: 32.5
I187: 167 | J187: 33
I188: 168 | J188: 33.5
I189: 169 | J189: 34
I190: 170 | J190: 34.5
I191: 171 | J191: 35
I192: 172 | J192: 35.5
I193: 173 | J193: 36
I194: 174 | J194: 36.5
I195: 175 | J195: 37
I196: 176 | J196: 37.5
I197: 177 | J197: 38
I198: 178 | J198: 38.5
I199: 179 | J199: 39
I200: 180 | J200: 39.5
I201: 181 | J201: 40
I202: 182 | J202: 40.5
I203: 183 | J203: 41
I204: 184 | J204: 41.5
I205: 185 | J205: 42
I206: 186 | J206: 42.5
I207: 187 | J207: 43
I208: 188 | J208: 43.5
I209: 189 | J209: 44
I210: 190 | J210: 44.5
I211: 191 | J211: 45
I212: 192 | J212: 45.5
I213: 193 | J213: 46
I214: 194 | J214: 46.5
I215: =I214+1 -> 195 | J215: =J214+0.5 -> 47
I216: 196 | J216: =J215+0.5 -> 47.5
I217: 197 | J217: =J216+0.5 -> 48
I218: 198 | J218: =J217+0.5 -> 48.5
I219: 199 | J219: 73.5
I220: 200 | J220: =J219+1 -> 74.5
... 40 more rows

Sheet Лист4
H21: 119 | I21: 1 | J21: -50
H22: 2 | I22: =I21+1 -> 2 | J22: =J21+0.5 -> -49.5 | R22: =$C$31 -> 9
H23: 3 | I23: =I22+1 -> 3 | J23: =J22+0.5 -> -49 | R23: =$C$31 -> 9
H24: 4 | I24: 4 | J24: -48.5 | R24: 9
H25: 5 | I25: 5 | J25: -48 | R25: 9
H26: 6 | I26: 6 | J26: -47.5 | R26: 9
I27: 7 | J27: -47 | R27: 9
I28: 8 | J28: -46.5 | R28: 9
I29: 9 | J29: -46 | R29: 9
I30: 10 | J30: -45.5 | R30: 9
C31: =IFERROR(VLOOKUP(H21,$I$21:$J359,2,FALSE),"") -> 9 | I31: 11 | J31: -45 | R31: 9
I32: 12 | J32: -44.5 | R32: 9
I33: 13 | J33: -44 | R33: 9
I34: 14 | J34: -43.5 | R34: 9
I35: 15 | J35: -43 | R35: 9
I36: 16 | J36: -42.5 | R36: 9
I37: 17 | J37: -42 | R37: 9
I38: 18 | J38: -41.5 | R38: 9
I39: 19 | J39: -41 | R39: 9
I40: 20 | J40: -40.5 | R40: 9
I41: 21 | J41: -40 | R41: 9
I42: 22 | J42: -39.5 | R42: 9
I43: 23 | J43: -39 | R43: 9
I44: 24 | J44: -38.5
I45: 25 | J45: -38
I46: 26 | J46: -37.5
I47: 27 | J47: -37
I48: 28 | J48: -36.5
I49: 29 | J49: -36
I50: 30 | J50: -35.5
I51: 31 | J51: -35
I52: 32 | J52: -34.5
I53: 33 | J53: -34
I54: 34 | J54: -33.5
I55: 35 | J55: -33
I56: 36 | J56: -32.5
I57: 37 | J57: -32
I58: 38 | J58: -31.5
I59: 39 | J59: -31
I60: 40 | J60: -30.5
I61: 41 | J61: -30
I62: 42 | J62: -29.5
I63: 43 | J63: -29
I64: 44 | J64: -28.5
I65: 45 | J65: -28
I66: 46 | J66: -27.5
I67: 47 | J67: -27
I68: 48 | J68: -26.5
I69: 49 | J69: -26
I70: 50 | J70: -25.5
I71: 51 | J71: -25
I72: 52 | J72: -24.5
I73: 53 | J73: -24
I74: 54 | J74: -23.5
I75: 55 | J75: -23
I76: 56 | J76: -22.5
I77: 57 | J77: -22
I78: 58 | J78: -21.5
I79: 59 | J79: -21
I80: 60 | J80: -20.5
I81: 61 | J81: -20
I82: 62 | J82: -19.5
I83: 63 | J83: -19
I84: 64 | J84: -18.5
I85: 65 | J85: -18
I86: 66 | J86: -17.5
I87: =I86+1 -> 67 | J87: =J86+0.5 -> -17
I88: 68 | J88: -16.5
I89: 69 | J89: -16
I90: 70 | J90: -15.5
I91: 71 | J91: -15
I92: 72 | J92: -14.5
I93: 73 | J93: -14
I94: 74 | J94: -13.5
I95: 75 | J95: -13
I96: 76 | J96: -12.5
I97: 77 | J97: -12
I98: 78 | J98: -11.5
I99: 79 | J99: -11
I100: 80 | J100: -10.5
I101: 81 | J101: -10
I102: 82 | J102: -9.5
I103: 83 | J103: -9
I104: 84 | J104: -8.5
I105: 85 | J105: -8
I106: 86 | J106: -7.5
I107: 87 | J107: -7
I108: 88 | J108: -6.5
I109: 89 | J109: -6
I110: 90 | J110: -5.5
I111: 91 | J111: -5
I112: 92 | J112: -4.5
I113: 93 | J113: -4
I114: 94 | J114: -3.5
I115: 95 | J115: -3
I116: 96 | J116: -2.5
I117: 97 | J117: -2
I118: 98 | J118: -1.5
I119: 99 | J119: -1
I120: 100 | J120: -0.5
I121: 101 | J121: 0
I122: 102 | J122: 0.5
I123: 103 | J123: 1
I124: 104 | J124: 1.5
I125: 105 | J125: 2
I126: 106 | J126: 2.5
I127: 107 | J127: 3
I128: 108 | J128: 3.5
I129: 109 | J129: 4
I130: 110 | J130: 4.5
I131: 111 | J131: 5
I132: 112 | J132: 5.5
I133: 113 | J133: 6
I134: 114 | J134: 6.5
I135: 115 | J135: 7
I136: 116 | J136: 7.5
I137: 117 | J137: 8
I138: 118 | J138: 8.5
I139: 119 | J139: 9
I140: 120 | J140: 9.5
I141: 121 | J141: 10
I142: 122 | J142: 10.5
I143: 123 | J143: 11
I144: 124 | J144: 11.5
I145: 125 | J145: 12
I146: 126 | J146: 12.5
I147: 127 | J147: 13
I148: 128 | J148: 13.5
I149: 129 | J149: 14
I150: 130 | J150: 14.5
I151: =I150+1 -> 131 | J151: =J150+0.5 -> 15
I152: 132 | J152: 15.5
I153: 133 | J153: 16
I154: 134 | J154: 16.5
I155: 135 | J155: 17
I156: 136 | J156: 17.5
I157: 137 | J157: 18
I158: 138 | J158: 18.5
I159: 139 | J159: 19
I160: 140 | J160: 19.5
I161: 141 | J161: 20
I162: 142 | J162: 20.5
I163: 143 | J163: 21
I164: 144 | J164: 21.5
I165: 145 | J165: 22
I166: 146 | J166: 22.5
I167: 147 | J167: 23
I168: 148 | J168: 23.5
I169: 149 | J169: 24
I170: 150 | J170: 24.5
I171: 151 | J171: 25
I172: 152 | J172: 25.5
I173: 153 | J173: 26
I174: 154 | J174: 26.5
I175: 155 | J175: 27
I176: 156 | J176: 27.5
I177: 157 | J177: 28
I178: 158 | J178: 28.5
I179: 159 | J179: 29
I180: 160 | J180: 29.5
I181: 161 | J181: 30
I182: 162 | J182: 30.5
I183: 163 | J183: 31
I184: 164 | J184: 31.5
I185: 165 | J185: 32
I186: 166 | J186: 32.5
I187: 167 | J187: 33
I188: 168 | J188: 33.5
I189: 169 | J189: 34
I190: 170 | J190: 34.5
I191: 171 | J191: 35
I192: 172 | J192: 35.5
I193: 173 | J193: 36
I194: 174 | J194: 36.5
I195: 175 | J195: 37
I196: 176 | J196: 37.5
I197: 177 | J197: 38
I198: 178 | J198: 38.5
I199: 179 | J199: 39
I200: 180 | J200: 39.5
I201: 181 | J201: 40
I202: 182 | J202: 40.5
I203: 183 | J203: 41
I204: 184 | J204: 41.5
I205: 185 | J205: 42
I206: 186 | J206: 42.5
I207: 187 | J207: 43
I208: 188 | J208: 43.5
I209: 189 | J209: 44
I210: 190 | J210: 44.5
I211: 191 | J211: 45
I212: 192 | J212: 45.5
I213: 193 | J213: 46
I214: 194 | J214: 46.5
I215: =I214+1 -> 195 | J215: =J214+0.5 -> 47
I216: 196 | J216: =J215+0.5 -> 47.5
I217: 197 | J217: =J216+0.5 -> 48
I218: 198 | J218: =J217+0.5 -> 48.5
I219: 199 | J219: 73.5
I220: 200 | J220: =J219+1 -> 74.5
... 40 more rows
